Cogmind - Beta 13 X2 @@@ ROGUE MODE // 2024.01.26 @ 23:33:33 // AFD2019/Pay2Buy Player: Minty Result: Destroyed by G-47 Trooper with Particle Gun Performance ------------- Evolutions (3) 1500 Regions Visited (6) 1200 Robots Destroyed (86) 430 Value Destroyed (3351) 3351 Prototype IDs (3) 60 Alien Tech Used (0) 0 Bonus (1050) 1050 TOTAL SCORE: 7591 Bonus ------- High Alert Combat Kills 903 Entered Garrisons 200 Friendly Fire -53 Cogmind --------- Core Integrity 0/700 Matter 140/300 Energy 99/100 System Corruption 5% Temperature Cool (68) Movement Core (50) Location -7/Factory Parts ------- > --- POWER (1) -------- (None) > --- PROPULSION (3) --- (None) > --- UTILITY (5) ------ (None) > --- WEAPON (4) ------- (None) > --- INVENTORY (10) --- Improved Terrain Scanner Advanced Transmission Jammer Relay Coupler [Grunt] (23) Relay Coupler [Sentry] (24) Relay Coupler [Sentry] (20) Relay Coupler [Hunter] (14) Relay Coupler [Behemoth] (9) Improved Plasma Cutter Peak State ------------ > --- POWER ------------ Light Fission Core > --- PROPULSION ------- Armored Leg > --- UTILITY ---------- Improved Cooling System Enhanced Optical Array Improved Terrain Scan Processor Hardlight Generator Makeshift Hacking Suite > --- WEAPON ----------- Precision Assault Rifle Precision Assault Rifle Greatsword > --- INVENTORY -------- Improved Terrain Scanner Advanced Transmission Jammer Relay Coupler [Grunt] Relay Coupler [Sentry] Relay Coupler [Sentry] Relay Coupler [Hunter] Relay Coupler [Behemoth] Improved Proton Missile Launcher Improved Plasma Cutter [Rating: 51] Favorites ----------- Power Deuterium Engine Engine Deuterium Engine Power Core Nuclear Core Propulsion Armored Treads Treads Armored Treads Leg Improved Aluminum Leg Flight Unit VTOL Module Utility Improved Terrain Scan Processor Device Advanced Transmission Jammer Processor Improved Terrain Scan Processor Hackware Makeshift Hacking Suite Protection Propulsion Shielding Weapon Heavy Particle Gun Energy Gun Heavy Particle Gun Energy Cannon Advanced Plasma Cannon Ballistic Gun Precision Assault Rifle Ballistic Cannon Mass Driver Launcher Mini Grenade Launcher Slashing Weapon Greatsword Build | -11 -10 -9 -9 -9 -9 -7 ------- Run | Yrd Mat Mat Sto Gar Rec Fac Slots Evolved 6 | . . 2 . . . 4 Power . | . . . . . . . Propulsion 1 | . . 1 . . . . Utility 3 | . . 1 . . . 2 Weapon 2 | . . . . . . 2 Parts Attached 24 | . 3 2 . 6 . 13 Power 1 | . . . . . . 1 Engine 1 | . . . . . . 1 Core . | . . . . . . . Reactor . | . . . . . . . Propulsion 3 | . . . . . . 3 Treads 2 | . . . . . . 2 Leg 1 | . . . . . . 1 Wheel . | . . . . . . . Hover . | . . . . . . . Flight . | . . . . . . . Utility 5 | . 2 2 . . . 1 Device 3 | . 1 1 . . . 1 Storage . | . . . . . . . Processor . | . . . . . . . Hackware . | . . . . . . . Protection 2 | . 1 1 . . . . Artifact . | . . . . . . . Weapon 15 | . 1 . . 6 . 8 Energy Gun 8 | . . . . 5 . 3 Energy Cannon . | . . . . . . . Ballistic Gun . | . . . . . . . Ballistic Cannon 1 | . 1 . . . . . Launcher 5 | . . . . 1 . 4 Special Weapon . | . . . . . . . Impact Weapon . | . . . . . . . Slashing Weapon 1 | . . . . . . 1 Piercing Weapon . | . . . . . . . Special Melee Weapon . | . . . . . . . Unidentified Prototypes . | . . . . . . . Parts Lost 26 | . 1 . 2 7 . 16 Power 6 | . 1 . 1 1 . 3 Propulsion 6 | . . . . 3 . 3 Utility 2 | . . . . 1 . 1 Weapon 12 | . . . 1 2 . 9 Highest Loss Streak 6 | . 1 . 2 6 . 6 To Critical Strikes . | . . . . . . . Average Slot Usage (%) 59 | . 83 72 93 60 55 57 Engine 5 | . 14 11 8 6 . 4 Core 2 | . . . . 1 11 2 Treads 2 | . . . . . . 3 Leg 4 | . . . . 10 11 2 Flight 3 | . 28 28 33 1 . . Device 5 | . 1 . 8 . . 8 Processor 10 | . . . 8 11 11 11 Hackware 2 | . . . . . . 3 Protection 2 | . 11 11 11 8 . . Energy Gun 8 | . . . . 18 22 6 Energy Cannon 2 | . . . . . . 3 Ballistic Cannon 2 | . 6 11 11 . . 2 Launcher 4 | . 21 11 11 3 . 3 Naked Turns . | . . . . . . . Heaviest Build 37 | 5 8 12 12 14 13 37 Greatest Support 33 | 8 8 12 12 13 13 33 Greatest Overweight (x) 7 | . . . . 2 . 7 Average Overweight (x) . | . . . . . . 1 Largest Inventory Capacity 10 | . 10 10 10 10 10 10 Average Capacity 10 | . 10 10 10 10 10 10 Most Carried 10 | . 2 3 3 9 9 10 Average Carried 8 | . 1 2 2 6 8 9 Final Capacity 10 | 10 10 10 10 10 10 10 Final Carried 9 | . 2 2 3 8 9 8 Class Distribution -------------------- 71% | Mutant 10% | Sprinter 9% | Skirmisher 4% | Gunner 3% | Tank Dominant Class ---------------- Sprinter | -10/Materials Sprinter | -9/Materials Sprinter | -9/Storage Mutant | -9/Garrison Mutant | -9/Recycling Mutant | -7/Factory Resources | -11 -10 -9 -9 -9 -9 -7 ----------- Run | Yrd Mat Mat Sto Gar Rec Fac Matter Collected 1579 | . 118 285 60 321 5 790 Remotely . | . . . . . . . Salvage Created 2765 | . 153 329 229 460 70 1524 Parts . | . . . . . . . Haulers Intercepted 2 | . 1 1 . . . . Recyclers Shooed . | . . . . . . . Parts Field Recycled . | . . . . . . . Retrieved Matter . | . . . . . . . Parts Self-Destructed . | . . . . . . . Prevented . | . . . . . . . Kills | -11 -10 -9 -9 -9 -9 -7 ------- Run | Yrd Mat Mat Sto Gar Rec Fac Combat Hostiles Destroyed 67 | . 6 7 7 12 . 35 Melee 4 | . . . . . . 4 Guns 18 | . . . . 9 . 9 Cannons 12 | . . 3 3 . . 6 AOE 31 | . 6 4 4 3 . 14 Classes Destroyed 14 | . 4 6 1 . . 3 Worker 5 | . . 1 . . . 4 Builder 5 | . . 1 2 . . 2 Tunneler 2 | . 1 . . . . 1 Hauler 2 | . 1 1 . . . . Recycler 4 | . 1 1 . . 1 1 Operator 1 | . . 1 . . . . Watcher 5 | . . 1 1 . . 3 Swarmer 7 | . 6 . . . . 1 Grunt 44 | . . 6 5 7 . 26 Brawler 3 | . . 1 . 1 . 1 Duelist 2 | . . . . . . 2 Protector 1 | . . . . . . 1 Sentry 7 | . . . 2 4 . 1 Programmer 3 | . . . . . . 3 Best Kill Streak 12 | . 5 12 10 4 1 7 Combat Bots Only 7 | . 3 5 7 4 . 5 Max Kills in Single Turn 4 | . 4 2 2 1 1 3 Gunslinging . | . . . . . . . Exploded 3 | . 3 2 1 1 . 2 Melee 1 | . . . . . . 1 Uniques/NPCs Destroyed . | . . . . . . . Combat | -11 -10 -9 -9 -9 -9 -7 -------- Run | Yrd Mat Mat Sto Gar Rec Fac Hostile Shots Fired 305 | . 9 1 27 61 . 207 Missed 84 | . 4 1 11 15 . 53 Damage Taken 4024 | . 185 82 204 739 . 2814 Core 1115 | . 38 61 34 282 . 700 Absorbed by Shields 61 | . . . . 13 . 48 Redirected to Shielding 48 | . . . 12 36 . . Core Remaining (%) 63 | 100 84 . . . 5 . Volleys Fired 214 | . 12 20 9 45 3 125 Largest 3 | . 2 2 2 2 2 3 Hottest 210 | . 69 69 69 120 120 210 Shots Fired 364 | . 17 31 16 74 6 220 Gun 173 | . . . . 65 6 102 Cannon 120 | . 7 20 9 . . 84 Launcher 71 | . 10 11 7 9 . 34 Special . | . . . . . . . Kinetic 115 | . 7 20 9 . . 79 Thermal 164 | . . . . 65 6 93 Explosive 66 | . 10 11 7 9 . 29 Electromagnetic 19 | . . . . . . 19 Robot Hit Streak 13 | . 3 4 6 13 2 11 Robot Miss Streak 8 | . 1 4 1 5 8 4 Penetration Max 1 | . . . . . . 1 Secondary Targets 2 | . . . . 1 . 1 Max Gunslinging Chain 1 | . . . . 1 . 1 Shots Hit Robots 191 | . 5 14 10 41 3 118 Core Hits 178 | . 14 18 18 32 3 93 Critical Kills 1 | . . . . . . 1 Critical Parts Destroyed . | . . . . . . . Critical Strikes 5 | . . . . . . 5 Burn 4 | . . . . . . 4 Meltdown 1 | . . . . . . 1 Melee Attacks 14 | . . . . . . 14 Impact . | . . . . . . . Slashing 14 | . . . . . . 14 Piercing . | . . . . . . . Sneak Attacks 3 | . . . . . . 3 Combat Hostiles 1 | . . . . . . 1 Follow-up Attacks . | . . . . . . . Damage Inflicted 8512 | . 528 786 678 828 42 5650 Guns 1741 | . . . . 572 42 1127 Cannons 1855 | . 44 195 142 . . 1474 Explosions 4304 | . 470 591 525 254 . 2464 Melee 583 | . . . . . . 583 Ramming 29 | . 14 . 11 2 . 2 Kinetic 1828 | . 44 195 142 . . 1447 Thermal 1637 | . . . . 572 42 1023 Explosive 3903 | . 470 591 525 254 . 2063 Electromagnetic 532 | . . . . . . 532 Impact . | . . . . . . . Slashing 583 | . . . . . . 583 Piercing . | . . . . . . . Highest Corruption 5 | . 1 . . 3 4 5 Average Corruption 3 | . 1 . . 3 3 2 Corruption Purged . | . . . . . . . Corruption Blocked . | . . . . . . . Effects 25 | . . . . 2 2 21 Message Errors 7 | . . . . . 1 6 Matter Fused 4 | . . . . . . 4 Heat Flow Errors 2 | . . . . . . 2 Energy Discharges 5 | . . . . 1 . 4 Parts Rejected 2 | . . . . 1 . 1 Data Loss (minor) 1 | . . . . . . 1 Misfires 2 | . . . . . . 2 Alerts 1 | . . . . . 1 . Weapon Failures 1 | . . . . . . 1 Overload Shots . | . . . . . . . Overflow Damage 272 | . 17 10 . 28 . 217 Projectiles 61 | . . . . . . 61 Explosions 130 | . 17 10 . 28 . 75 Melee 81 | . . . . . . 81 Knockbacks 14 | . 1 1 . . . 12 Impact . | . . . . . . . Kinetic 13 | . 1 1 . . . 11 Secondary 1 | . . . . . . 1 Self-Inflicted Damage 583 | . 130 83 5 105 . 260 Shots 21 | . 4 3 . 4 . 10 Rammed 7 | . 4 . 2 . . 1 Targets Rammed 7 | . 4 . 2 . . 1 Kicked . | . . . . . . . Crushed . | . . . . . . . Highest Temperature 422 | . 16 18 56 422 114 389 Average Temperature 118 | . 7 7 30 120 52 151 Received Heat Transfer 1518 | . 12 . 84 228 . 1194 Effects 9 | . . . . 3 . 6 Energy Bleed 2 | . . . . . . 2 Interference 5 | . . . . 2 . 3 Matter Decay 1 | . . . . . . 1 Damage (major) 1 | . . . . 1 . . Siege Activations . | . . . . . . . Robots Corrupted 1 | . . . . . . 1 Combat Hostiles 1 | . . . . . . 1 Parts Fried . | . . . . . . . Impact Corruptions . | . . . . . . . Robots Melted 1 | . . . . . . 1 Combat Hostiles 1 | . . . . . . 1 Parts Melted . | . . . . . . . Heat Transferred 2914 | . . . . 929 62 1923 Parts Sabotaged . | . . . . . . . Parts Stolen . | . . . . . . . Parts Stripped . | . . . . . . . Power Chain Reactions . | . . . . . . . Missiles Intercepted . | . . . . . . . Alert | -11 -10 -9 -9 -9 -9 -7 ------- Run | Yrd Mat Mat Sto Gar Rec Fac Peak Influence 1597 | . 420 494 480 657 305 1597 Initial 301 | . . 177 208 301 295 228 Average 649 | . 277 349 345 510 299 776 Maximum Alert Level 4 | . 2 2 2 2 1 4 Low Security (%) 1 | . 21 2 . . . . Level 1 31 | . 66 51 57 15 100 23 Level 2 33 | . 11 46 42 84 . 24 Level 3 23 | . . . . . . 35 Level 4 10 | . . . . . . 16 Level 5 . | . . . . . . . High Security . | . . . . . . . Max Security . | . . . . . . . Squads Dispatched 18 | . 2 1 2 . . 13 Investigation 6 | . 2 . . . . 4 Extermination 3 | . . . . . . 3 Reinforcement 6 | . . 1 1 . . 4 Assault 2 | . . . . . . 2 Garrison 1 | . . . 1 . . . Intercept . | . . . . . . . Searches Triggered . | . . . . . . . Construction Impeded 2 | . . . . . . 2 Haulers Reinforced . | . . . . . . . Active Scanning Responses . | . . . . . . . Cargo Convoy Interrupts . | . . . . . . . Stealth | -11 -10 -9 -9 -9 -9 -7 --------- Run | Yrd Mat Mat Sto Gar Rec Fac Distress Signals 5 | . 1 2 . . . 2 Communications Jammed 1 | . . . . . . 1 Distress Signals 1 | . . . . . . 1 Times Spotted 117 | . 11 9 14 12 . 71 Peak Tracking Total 12 | . 5 4 5 4 . 12 Tactical Retreats 9 | . 1 . . . . 8 Traps | -11 -10 -9 -9 -9 -9 -7 ------- Run | Yrd Mat Mat Sto Gar Rec Fac Traps Triggered 10 | . . . . 3 . 7 Indirectly 2 | . . . . . . 2 Trap Hack Attempts . | . . . . . . . Triggered . | . . . . . . . Disarmed . | . . . . . . . Reprogrammed 6 | . 6 . . . . . Reused 1 | . 1 . . . . . Traps Extracted . | . . . . . . . Installed . | . . . . . . . Triggered 1 | . 1 . . . . . Machines | -11 -10 -9 -9 -9 -9 -7 ---------- Run | Yrd Mat Mat Sto Gar Rec Fac Machines Disabled 34 | . 3 . 2 1 . 28 Max in Single Turn 6 | . 1 . 1 1 . 6 Garrison Relay 1 | . . . . 1 . . Machines Repaired . | . . . . . . . Machines Dismantled . | . . . . . . . Machines Sabotaged 3 | . 1 . . . . 2 Overloaded Fab Kills . | . . . . . . . Hacking | -11 -10 -9 -9 -9 -9 -7 --------- Run | Yrd Mat Mat Sto Gar Rec Fac Machines Accessed 21 | . 6 2 2 1 3 7 Terminals 19 | . 6 2 1 1 3 6 Fabricators . | . . . . . . . Repair Stations . | . . . . . . . Recycling Units . | . . . . . . . Scanalyzers 1 | . . . . . . 1 Garrison Access 1 | . . . 1 . . . Total Hacks 62 | . 18 10 3 4 8 19 Successful 20 | . 6 2 2 . 3 7 Failed 42 | . 12 8 1 4 5 12 Catastrophic 9 | . 2 1 . . 2 4 Database Lockouts . | . . . . . . . Manual 44 | . 11 10 . . 8 15 Terminals 59 | . 18 10 1 4 8 18 Fabricators . | . . . . . . . Repair Stations . | . . . . . . . Recycling Units . | . . . . . . . Scanalyzers 1 | . . . . . . 1 Garrison Access 2 | . . . 2 . . . Terminal Hacks 7 | . 3 . 1 . . 3 Open Door 1 | . . . 1 . . . Terminal Index 1 | . 1 . . . . . Garrison Index 1 | . . . . . . 1 Alert Level 1 | . . . . . . 1 Locate Traps 2 | . 1 . . . . 1 Reprogram Traps 1 | . 1 . . . . . Fabricator Hacks . | . . . . . . . Repair Station Hacks . | . . . . . . . Recycling Unit Hacks . | . . . . . . . Scanalyzer . | . . . . . . . Garrison Access Hacks 1 | . . . 1 . . . Unlock Access 1 | . . . 1 . . . Unauthorized Hacks 12 | . 3 2 . . 3 4 Terminals 12 | . 3 2 . . 3 4 Track 1 | . . . . . 1 . Assimilate 1 | . . 1 . . . . Botnet 7 | . 2 1 . . 2 2 Sabotage 3 | . 1 . . . . 2 Fabricators . | . . . . . . . Repair Stations . | . . . . . . . Recycling Units . | . . . . . . . Scanalyzers . | . . . . . . . Garrison Access . | . . . . . . . Data Cores Recovered . | . . . . . . . Used . | . . . . . . . Hacking Detections 20 | . 6 2 1 1 3 7 Full Trace Events 10 | . 4 1 . 1 2 2 Feedback Events 2 | . 1 . . . 1 . Corruption 2 | . 1 . . . 1 . Feedback Blocked . | . . . . . . . Robot Schematics Acquired . | . . . . . . . Robots Built . | . . . . . . . Authchips . | . . . . . . . Time . | . . . . . . . Total Robot Build Rating . | . . . . . . . Part Schematics Acquired . | . . . . . . . Parts Built . | . . . . . . . Authchips . | . . . . . . . Time . | . . . . . . . Total Part Build Rating . | . . . . . . . Parts Repaired . | . . . . . . . Time . | . . . . . . . Parts Recycled . | . . . . . . . Recycled Matter . | . . . . . . . Retrieved Matter . | . . . . . . . Retrieved Components . | . . . . . . . Parts Scanalyzed . | . . . . . . . Part Schematics Acquired . | . . . . . . . Parts Damaged . | . . . . . . . Bothacking | -11 -10 -9 -9 -9 -9 -7 ------------ Run | Yrd Mat Mat Sto Gar Rec Fac Used RIF Installer . | . . . . . . . Robots Hacked . | . . . . . . . Non-combat . | . . . . . . . Combat . | . . . . . . . Robot Hacks Applied . | . . . . . . . Relay Couplers Released 5 | . . . . 5 . . Machine Destruction 5 | . . . . 5 . . Fabnet Peak Effective % . | . . . . . . . Robots Rewired . | . . . . . . . Allies Hacked . | . . . . . . . Hacks Repelled . | . . . . . . . Allies | -11 -10 -9 -9 -9 -9 -7 -------- Run | Yrd Mat Mat Sto Gar Rec Fac Total Allies 1 | . . 1 . . . . Largest Group 1 | . . 1 . . . . Highest-Rated Group 10 | . . 10 . . . . Highest-Rated Ally 10 | . . 10 . . . . Total Orders . | . . . . . . . Ally Attacks . | . . . . . . . Total Damage . | . . . . . . . Kills . | . . . . . . . Allies Corrupted . | . . . . . . . Allies Melted . | . . . . . . . Intel | -11 -10 -9 -9 -9 -9 -7 ------- Run | Yrd Mat Mat Sto Gar Rec Fac Robot Analysis Total . | . . . . . . . Derelict Logs Recovered . | . . . . . . . Drone Launches . | . . . . . . . Drone Recoveries . | . . . . . . . Exploration | -11 -10 -9 -9 -9 -9 -7 ------------- Run | Yrd Mat Mat Sto Gar Rec Fac Turns Passed 2536 | . 118 93 54 439 179 1653 Spaces Moved 1384 | 1 250 116 88 233 142 554 Core 68 | . . . . 1 . 67 Treads 282 | . . . . . . 282 Legs 559 | . . . . 212 142 205 Wheels . | . . . . . . . Hover . | . . . . . . . Flight 475 | 1 250 116 88 20 . . Fastest Speed 30 | 32 32 30 30 30 120 50 Average Speed 130 | 32 32 30 30 126 120 216 Slowest Speed 400 | 32 32 32 30 190 120 400 Overloaded Moves . | . . . . . . . Propulsion Burnouts . | . . . . . . . Robots Hopped 2 | . 2 . . . . . Cave-ins Triggered . | . . . . . . . Exploration Rate (%) 29 | 2 49 24 27 34 45 26 Regions Visited 6 Branch Regions 2 Pre-discovered Areas . | . . . . . . . Known Exits Taken 1 | . . . 1 . . . Unknown Exits Taken 4 | 1 1 1 . . 1 . Scrap Searched . | . . . . . . . Spaces Dug 20 | . . . . 20 . . Terrain Destroyed 535 | . 91 87 51 69 . 237 Melee . | . . . . . . . Projectile 29 | . . 3 1 2 . 23 AOE 506 | . 91 84 50 67 . 214 Terrain Rammed 1 | . . . . 1 . . Walls Destroyed . | . . . . . . . Machines Disabled . | . . . . . . . Actions | -11 -10 -9 -9 -9 -9 -7 --------- Run | Yrd Mat Mat Sto Gar Rec Fac Total 1730 | . 269 142 100 300 144 775 Wait 64 | . . 3 . 1 . 60 Move 1375 | . 245 115 88 232 141 554 Hop 2 | . 2 . . . . . Pick Up 6 | . . . . 5 . 1 Fast Attach 7 | . . . . 1 . 6 Attach 13 | . 2 2 . 2 . 7 Detach 10 | . 3 2 1 . . 4 Swap 4 | . 1 . . 3 . . Drop 3 | . . . . . . 3 Fire 214 | . 12 20 9 45 3 125 Melee 14 | . . . . . . 14 Ram 7 | . 4 . 2 1 . . Kick . | . . . . . . . Crush 1 | . . . . . . 1 Escape Stasis 10 | . . . . 10 . . Rewire . | . . . . . . . Trap . | . . . . . . . Miscellaneous . | . . . . . . . Route ------- -11/Scrapyard -10/Materials -9/Materials (discovered 2 exits: [*Mat] / *Sto) -9/Storage -9/Garrison -9/Recycling -7/Factory (discovered 2 exits: [*Fac x2]) History --------- Turn | Location | Event 1 | -11/Scrapyard | Discovered new exit (range 0) 1 | -11/Scrapyard | Entered Materials 105 | -10/Materials | Discovered new exit (range 15) 119 | -10/Materials | Entered another Materials area 119 | -9/Materials | Evolved 2 slots: Propulsion x1, Utility x1 158 | -9/Materials | Discovered new exit (range 11) 212 | -9/Materials | Discovered new exit (range 16) 212 | -9/Materials | Entered Storage 266 | -9/Storage | Identified exit to Garrison 266 | -9/Storage | Entered Garrison 277 | -9/Garrison | Destroyed 7 combat bots 289 | -9/Garrison | Core integrity fell below 50% 313 | -9/Garrison | Lost 6 parts (1p3n2w) 336 | -9/Garrison | Garrison Relay disabled 352 | -9/Garrison | Triggered checkpoint 576 | -9/Garrison | Build established: Mutant 594 | -9/Garrison | Triggered checkpoint 604 | -9/Garrison | Core integrity fell below 20% 690 | -9/Garrison | Discovered new exit (range 12) 705 | -9/Garrison | Entered Recycling 866 | -9/Recycling | Discovered new exit (range 16) 884 | -9/Recycling | Entered Factory 884 | -7/Factory | Evolved 4 slots: Utility x2, Weapon x2 2016 | -7/Factory | Discovered new exit (range 7) 2084 | -7/Factory | First assault squad dispatched 2202 | -7/Factory | Core integrity fell below 50% 2360 | -7/Factory | Discovered new exit (range 6) 2521 | -7/Factory | Core integrity fell below 20% 2537 | -7/Factory | Released all parts (6) 2537 | -7/Factory | Destroyed by G-47 Trooper with Particle Gun Last Messages --------------- 02525_ G-47 Trooper unfolds itself. 02525_ M-28 Smith unfolds itself. 02525_ U-05 Engineer lays Concrete. 02526_ Penetrated by Slug. 02528_ K-01 Serf collects debris. 02531_ Hardlight Generator destroyed. 02533_ Penetrated by Slug. 02534_ G-47 Trooper destroyed. 02534_ Switching to secondary target: H-55 Commando. 02535_ Prc. Assault Rifle destroyed. 02535_ K-01 Serf collects debris. 02537_ Prc. Assault Rifle destroyed. [You open your loot box...] [Congratulations on your very own Kinecellerator!] 02537_ Released Imp. Cooling System. 02537_ Released Enh. Optical Array. 02537_ Released Mak. Hacking Suite. 02537_ Released Imp. Terrain Scan Processor. 02537_ Released Arm. Leg. 02537_ Released Kinecellerator. Map ----- +----------------------------------------------------+ | ?????????????????????????????????????????????????? | | ?????????????????????????????????????????????????? | | ?????????????????????????????????????????????????? | | ?????????????????????????????????????????????????? | | ?????????????????????????????????????????????????? | | ?????????????????????????????????????????????????? | | ??????????####???????????????????????????????????? | | ??????????# ???????????????????????????????????? | | ??????????# ???????????????????????????????????? | | ??????????# ???????????????????????????????????? | | ??????????? ???????????????????????????????????? | | ??????????? ???????????????????????????????????? | | ????????##? ???????????????????????????????????? | | ????????? ##+###???###???????????????????????????? | | ????????? #??# ??????????????????????????? | | ?????????? ??+ """? ??? ???????????????????? | | ??????????? #??# """" ????????????????????? | | ???????????# #??# """" ?? ? ????????????????? | | ???????????# #??# """" ?????????????????? | | ##########?# #??# """" ??????????????????? | | """ #?# #??# """" "?????????????????????? | | Y" ### #### """" ???????????????????????? | | " " # h ??????????????????????????? | | """ # g ##################???????????? | | """ # T g g ! % #???????????? | | """ / ""gg%g g !@ % ???? | | """ # k % gg = #???????????? | | # # g############## #???????????? | | # # #????????????????????????????? | | ####### ## % ####????????????????????????????? | | ????? # ???????????????????????????????? | | ???T # % ???????????????????????????????? | | ?# + ???????????????????????????????? | | ?# % ???????????????????????????????? | | ?# # ???????????????????????????????? | | ?# """ # ???????????????????????????????? | | ?# """ # ???????????????????????????????? | | ?# """ # # ???????????????????????????????? | | ?# # # ???????????????????????????????? | | ?########## ##???????????????????????????????? | | ??????????# #????????????????????????????????? | | ??????????# #????????????????????????????????? | | ??????????# #????????????????????????????????? | | ??????????# #????????????????????????????????? | | ??????????# #????????????????????????????????? | | ??????????? #????????????????????????????????? | | ??????????? ??????????????????????????????????? | | ?????????????????????????????????????????????????? | | ?????????????????????????????????????????????????? | | ?????????????????????????????????????????????????? | +----------------------------------------------------+ Best States ------------- Heat Dissipation 61 Energy Generation 18 Energy Capacity 275 Matter Stores 300 Matter Capacity 300 Sight Range 22 Terrain Scan Range 16 Terrain Scan Density 110 Jamming Range 16 Propulsion Shielding 33 Evasion (%) 64 Recoil Reduction 1 Offensive Hacking 11 Item Schematics ----------------- None Robot Schematics ------------------ None Fabricated ------------ Nothing Alien Tech Used ----------------- None Achievements -------------- None Challenges ------------ None Cogshop Purchases (37) ------------------------ VTOL Module (1049) VTOL Module (1049) Lgt. Ion Engine (599) Mni. Grenade Launcher (1049) Mni. Grenade Launcher (1049) Lgt. Ion Engine (599) Propulsion Shielding (599) Hardlight Generator (Loot Box) Battle Cannon (769) Flight Unit (991) Imp. Terrain Scanner (817) Imp. Terrain Scan Processor (720) Imp. Ion Engine (744) Hvy. Particle Gun (765) Imp. Aluminum Leg (629) Spread Laser (660) Hvy. Particle Gun (916) Nuclear Core (795) Hvy. Rocket Launcher (Loot Box) Arm. Treads (892) Adv. Plasma Cannon (Loot Box) Deuterium Engine (796) Adv. Transmission Jammer (Loot Box) Imp. Proton Missile Launcher (1090) Hvy. EM Shotgun (755) Mak. Hacking Suite (1071) Enh. Optical Array (Loot Box) Mass Driver (Loot Box) Imp. Cooling System (1469) Titanium Leg (778) Greatsword (930) Arm. Leg (530) Lgt. Fission Core (715) Prc. Assault Rifle (731) Prc. Assault Rifle (856) Imp. Plasma Cutter (Loot Box) Kinecellerator (Loot Box) Game ------ Seed SubdwellerWardroneCalibrator Manual? 0 Play Time 00:23:31 Cumulative 623.7 hours Start 2024.01.26 @ 23:13:57 End 2024.01.26 @ 23:33:33 Sessions 1 Manual Loads 0 Difficulty Rogue Special Mode AFD2019/Pay2Buy Game No. 590 Rogue 317 Adventurer 123 Explorer 150 Win Type - Total 25 Types 19/0/4/1/0/0/0/1/0 Lore% 80 Gallery% 91 Achievement% 76 Wizard Run 0 Options --------- ASCII 0 Keyboard 1 Movement Numpad Keybinds 0 Fullscreen 2 Font 18/X11Bold Map View 76x50 Zoom Use 0% Tactical HUD 1 Map Filters NONE Filters NONE Steam 1 RUN: abcd3399-a2e4-4c45-b416-939327a7d2a5